Cogmind - Beta 10.2 @@@ ROGUE MODE // 2021.10.11 @ 21:09:40 Player: Coronach Result: Destroyed by DAS Turret with DAS Cannon Performance ------------- Evolutions (0) 0 Regions Visited (3) 600 Robots Destroyed (15) 75 Value Destroyed (270) 270 Prototype IDs (23) 460 Alien Tech Used (0) 0 Bonus (273) 273 TOTAL SCORE: 1678 Bonus ------- Aligned with FarCom 300 Friendly Fire -27 Cogmind --------- Core Integrity 0/250 Matter 300/300 Energy 100/100 System Corruption 0% Temperature Cool (0) Movement Core (300) Ox5 Location -10/Exiles Parts ------- > --- POWER (1) -------- (None) > --- PROPULSION (2) --- (None) > --- UTILITY (2) ------ Medium Storage Unit Medium Storage Unit > --- WEAPON (2) ------- (None) > --- INVENTORY (12) --- Wheel Improved Heat Sink High-capacity Battery (400) Medium Matter Pod (94) Improved Targeting Computer Light Armor Plating Assault Rifle XL Autogun Array Mining Laser Peak State ------------ > --- POWER ------------ Light Ion Engine > --- PROPULSION ------- Compact Wheel Compact Wheel > --- UTILITY ---------- Medium Storage Unit Medium Storage Unit > --- WEAPON ----------- Grenade Launcher Plasma Cutter > --- INVENTORY -------- Wheel Improved Heat Sink High-capacity Battery Medium Matter Pod Improved Targeting Computer Light Armor Plating Assault Rifle XL Autogun Array Mining Laser [Rating: 12] Favorites ----------- Power Light Ion Engine Engine Light Ion Engine Propulsion Compact Wheel Leg Aluminum Leg Wheel Compact Wheel Utility Improved Targeting Computer Storage Small Storage Unit Processor Improved Targeting Computer Weapon Assault Rifle Energy Gun Small Laser Ballistic Gun Assault Rifle Launcher Grenade Launcher Special Weapon Plasma Cutter Build | -11 -10 -10 -10 ------- Run | Scr Mat Min Exi Slots Evolved . | . . . . Power . | . . . . Propulsion . | . . . . Utility . | . . . . Weapon . | . . . . Parts Attached 13 | 4 4 2 3 Power 1 | 1 . . . Engine 1 | 1 . . . Core . | . . . . Reactor . | . . . . Propulsion 3 | 2 1 . . Treads . | . . . . Leg . | . . . . Wheel 3 | 2 1 . . Hover . | . . . . Flight . | . . . . Utility 3 | . 1 . 2 Device . | . . . . Storage 2 | . . . 2 Processor 1 | . 1 . . Hackware . | . . . . Protection . | . . . . Artifact . | . . . . Weapon 6 | 1 2 2 1 Energy Gun . | . . . . Energy Cannon . | . . . . Ballistic Gun 2 | 1 1 . . Ballistic Cannon . | . . . . Launcher 2 | . 1 1 . Special Weapon 2 | . . 1 1 Impact Weapon . | . . . . Slashing Weapon . | . . . . Piercing Weapon . | . . . . Special Melee Weapon . | . . . . Unidentified Prototypes . | . . . . Parts Lost 5 | . . . 5 Power 1 | . . . 1 Propulsion 2 | . . . 2 Utility . | . . . . Weapon 2 | . . . 2 Highest Loss Streak 5 | . . . 5 Average Slot Usage (%) 99 | . 98 100 99 Engine 13 | . 14 14 13 Wheel 27 | . 28 28 27 Storage 16 | . 14 14 18 Processor 11 | . 12 14 9 Ballistic Gun 17 | . 25 14 13 Launcher 8 | . 2 4 13 Special Weapon 1 | . . 9 . Naked Turns . | . . . . Heaviest Build 24 | 9 12 12 24 Greatest Support 32 | 26 32 32 32 Greatest Overweight (x) . | . . . . Average Overweight (x) . | . . . . Largest Inventory Capacity 12 | 6 6 6 12 Average Capacity 7 | 6 6 6 8 Most Carried 12 | 6 6 6 12 Average Carried 6 | 1 5 6 6 Final Capacity 12 | 6 6 6 12 Final Carried 12 | 3 6 6 12 Class Distribution -------------------- 100% | Mutant Dominant Class ---------------- Mutant | -10/Materials Mutant | -10/Mines Mutant | -10/Exiles Resources | -11 -10 -10 -10 ----------- Run | Scr Mat Min Exi Matter Collected 420 | 248 100 51 21 Remotely . | . . . . Salvage Created 403 | 105 220 78 . Parts 32 | 6 16 10 . Haulers Intercepted . | . . . . Recyclers Shooed . | . . . . Parts Field Recycled . | . . . . Retrieved Matter . | . . . . Parts Self-Destructed . | . . . . Prevented . | . . . . Kills | -11 -10 -10 -10 ------- Run | Scr Mat Min Exi Combat Hostiles Destroyed 10 | . 4 6 . Guns 7 | . 4 3 . AOE 3 | . . 3 . Classes Destroyed 5 | 2 2 1 . Tunneler 1 | 1 . . . Recycler 1 | 1 . . . Watcher 3 | . 3 . . Swarmer 6 | . . 6 . Grunt 4 | . 4 . . Best Kill Streak 3 | 2 3 3 . Combat Bots Only 3 | . 2 3 . Max Kills in Single Turn 3 | 1 1 3 . Gunslinging . | . . . . Exploded 3 | . . 3 . Melee . | . . . . Uniques/NPCs Destroyed . | . . . . Combat | -11 -10 -10 -10 -------- Run | Scr Mat Min Exi Damage Taken 794 | . 202 102 490 Core 293 | . 33 41 219 Absorbed by Shields . | . . . . Core Remaining (%) 100 | 100 . . . Volleys Fired 32 | 4 22 5 1 Largest 2 | 2 2 2 1 Hottest 40 | 40 40 40 20 Shots Fired 62 | 8 44 9 1 Gun 56 | 8 44 4 . Cannon . | . . . . Launcher 1 | . . 1 . Special 5 | . . 4 1 Kinetic 56 | 8 44 4 . Thermal 5 | . . 4 1 Explosive 1 | . . 1 . Electromagnetic . | . . . . Robot Hit Streak 5 | 3 5 4 5 Robot Miss Streak 2 | 2 2 1 . Penetration Max . | . . . . Secondary Targets 2 | . 2 . . Max Gunslinging Chain 1 | . 1 . . Shots Hit Robots 39 | 5 29 4 1 Core Hits 24 | 4 14 6 . Critical Hits . | . . . . Critical Kills . | . . . . Critical Parts Destroyed . | . . . . Melee Attacks . | . . . . Impact . | . . . . Slashing . | . . . . Piercing . | . . . . Sneak Attacks . | . . . . Combat Hostiles . | . . . . Follow-up Attacks . | . . . . Damage Inflicted 505 | 33 288 172 12 Guns 368 | 33 288 47 . Cannons . | . . . . Explosions 104 | . . 104 . Melee . | . . . . Ramming . | . . . . Kinetic 368 | 33 288 47 . Thermal 33 | . . 21 12 Explosive 104 | . . 104 . Electromagnetic . | . . . . Impact . | . . . . Slashing . | . . . . Piercing . | . . . . Highest Corruption . | . . . . Average Corruption . | . . . . Corruption Purged . | . . . . Overload Shots . | . . . . Overflow Damage . | . . . . Projectiles . | . . . . Explosions . | . . . . Melee . | . . . . Knockbacks . | . . . . Impact . | . . . . Kinetic . | . . . . Secondary . | . . . . Self-Inflicted Damage . | . . . . Shots . | . . . . Rammed . | . . . . Targets Rammed . | . . . . Kicked . | . . . . Crushed . | . . . . Highest Temperature 18 | . 18 . . Average Temperature 8 | . 8 . . Received Heat Transfer 111 | . 111 . . Siege Activations . | . . . . Robots Corrupted . | . . . . Combat Hostiles . | . . . . Parts Fried . | . . . . Impact Corruptions . | . . . . Robots Melted . | . . . . Combat Hostiles . | . . . . Parts Melted . | . . . . Heat Transferred 111 | . . 74 37 Parts Sabotaged . | . . . . Parts Stolen . | . . . . Parts Stripped . | . . . . Power Chain Reactions . | . . . . Missiles Intercepted . | . . . . Alert | -11 -10 -10 -10 ------- Run | Scr Mat Min Exi Peak Influence 183 | 10 183 155 . Initial 6 | . 6 . . Average 91 | 6 106 77 . Maximum Alert Level . | . . . . Low Security (%) 100 | 100 100 100 . Level 1 . | . . . . Level 2 . | . . . . Level 3 . | . . . . Level 4 . | . . . . Level 5 . | . . . . High Security . | . . . . Max Security . | . . . . Squads Dispatched 1 | . 1 . . Investigation . | . . . . Extermination . | . . . . Reinforcement 1 | . 1 . . Assault . | . . . . Garrison . | . . . . Intercept . | . . . . Construction Impeded . | . . . . Haulers Reinforced . | . . . . Stealth | -11 -10 -10 -10 --------- Run | Scr Mat Min Exi Distress Signals 1 | . 1 . . Communications Jammed . | . . . . Distress Signals . | . . . . Times Spotted 27 | . 8 7 12 Peak Tracking Total 12 | . 3 3 12 Tactical Retreats 2 | . . 1 1 Traps | -11 -10 -10 -10 ------- Run | Scr Mat Min Exi Traps Triggered . | . . . . Indirectly . | . . . . Trap Hack Attempts . | . . . . Triggered . | . . . . Disarmed . | . . . . Reprogrammed . | . . . . Reused . | . . . . Traps Extracted . | . . . . Installed . | . . . . Triggered . | . . . . Machines | -11 -10 -10 -10 ---------- Run | Scr Mat Min Exi Machines Disabled . | . . . . Max in Single Turn . | . . . . Machines Sabotaged . | . . . . Garrisons Compromised . | . . . . Overloaded Fab Kills . | . . . . Fab Network Shutdowns . | . . . . Hacking | -11 -10 -10 -10 --------- Run | Scr Mat Min Exi Machines Accessed 5 | . 4 . 1 Terminals 4 | . 4 . . Fabricators . | . . . . Repair Stations . | . . . . Recycling Units . | . . . . Scanalyzers . | . . . . Garrison Access . | . . . . Total Hacks 22 | . 21 . 1 Successful 12 | . 11 . 1 Failed 10 | . 10 . . Catastrophic 1 | . 1 . . Database Lockouts . | . . . . Manual 20 | . 19 . 1 Terminals 21 | . 21 . . Fabricators . | . . . . Repair Stations . | . . . . Recycling Units . | . . . . Scanalyzers . | . . . . Garrison Access . | . . . . Terminal Hacks 7 | . 6 . 1 Part Schematic 2 | . 2 . . Robot Analysis 1 | . 1 . . Branch Access Points 1 | . 1 . . Locate Traps 1 | . 1 . . Hauler Manifests 1 | . 1 . . EX-Prototype ID Bank 1 | . . . 1 Fabricator Hacks . | . . . . Repair Station Hacks . | . . . . Recycling Unit Hacks . | . . . . Scanalyzer . | . . . . Garrison Access Hacks . | . . . . Unauthorized Hacks 5 | . 5 . . Terminals 5 | . 5 . . Track 1 | . 1 . . Botnet 3 | . 3 . . Operators 1 | . 1 . . Fabricators . | . . . . Repair Stations . | . . . . Recycling Units . | . . . . Scanalyzers . | . . . . Garrison Access . | . . . . Data Cores Recovered . | . . . . Used . | . . . . Hacking Detections 4 | . 4 . . Full Trace Events 1 | . 1 . . Feedback Events . | . . . . Feedback Blocked . | . . . . Robot Schematics Acquired . | . . . . Robots Built . | . . . . Matter . | . . . . Time . | . . . . Total Robot Build Rating . | . . . . Part Schematics Acquired 2 | . 2 . . Parts Built . | . . . . Matter . | . . . . Time . | . . . . Total Part Build Rating . | . . . . Parts Repaired . | . . . . Time . | . . . . Parts Recycled . | . . . . Recycled Matter . | . . . . Retrieved Matter . | . . . . Retrieved Components . | . . . . Parts Scanalyzed . | . . . . Part Schematics Acquired . | . . . . Parts Damaged . | . . . . Bothacking | -11 -10 -10 -10 ------------ Run | Scr Mat Min Exi Used RIF Installer . | . . . . Robots Hacked . | . . . . Non-combat . | . . . . Combat . | . . . . Robot Hacks Applied . | . . . . Relay Couplers Released . | . . . . Robots Rewired . | . . . . Allies Hacked . | . . . . Hacks Repelled . | . . . . Allies | -11 -10 -10 -10 -------- Run | Scr Mat Min Exi Total Allies . | . . . . Largest Group . | . . . . Highest-Rated Group . | . . . . Highest-Rated Ally . | . . . . Total Orders . | . . . . Ally Attacks . | . . . . Total Damage . | . . . . Kills . | . . . . Allies Corrupted . | . . . . Allies Melted . | . . . . Intel | -11 -10 -10 -10 ------- Run | Scr Mat Min Exi Robot Analysis Total 1 | . 1 . . Derelict Logs Recovered . | . . . . Drone Launches . | . . . . Drone Recoveries . | . . . . Exploration | -11 -10 -10 -10 ------------- Run | Scr Mat Min Exi Turns Passed 1391 | 35 431 230 695 Spaces Moved 1236 | 14 336 204 682 Core . | . . . . Treads . | . . . . Legs . | . . . . Wheels 1236 | 14 336 204 682 Hover . | . . . . Flight . | . . . . Fastest Speed 90 | 90 90 100 100 Average Speed 99 | 90 98 100 100 Slowest Speed 100 | 90 100 100 100 Overloaded Moves . | . . . . Propulsion Burnouts . | . . . . Robots Hopped . | . . . . Cave-ins Triggered . | . . . . Exploration Rate (%) 47 | 2 61 37 90 Regions Visited 3 Branch Regions 2 Pre-discovered Areas . | . . . . Known Exits Taken 1 | . 1 . . Unknown Exits Taken 2 | 1 . 1 . Scrap Searched 2 | . . 2 . Spaces Dug . | . . . . Terrain Destroyed 4 | . . 4 . Melee . | . . . . Projectile . | . . . . AOE 4 | . . 4 . Terrain Rammed . | . . . . Walls Destroyed . | . . . . Machines Disabled . | . . . . Actions | -11 -10 -10 -10 --------- Run | Scr Mat Min Exi Total 1338 | 30 398 216 694 Wait 34 | . 25 6 3 Move 1233 | 13 335 203 682 Hop . | . . . . Pick Up 13 | 3 7 . 3 Fast Attach 2 | . 1 . 1 Attach 1 | . 1 . . Detach . | . . . . Swap 10 | 4 2 2 2 Drop 13 | 6 5 . 2 Fire 32 | 4 22 5 1 Melee . | . . . . Ram . | . . . . Kick . | . . . . Crush . | . . . . Escape Stasis . | . . . . Rewire . | . . . . Trap . | . . . . Miscellaneous . | . . . . Route ------- -11/Scrapyard -10/Materials (discovered 2 exits: [*Mat] / *Min) -10/Mines (discovered 2 exits: [*Mat] / *Exi) -10/Exiles (discovered 2 exits: [*Min x2]) History --------- Turn | Location | Event 21 | -11/Scrapyard | Discovered new exit (range 3) 36 | -11/Scrapyard | Entered Materials 273 | -10/Materials | Discovered new exit (range 4) 317 | -10/Materials | Build established: Mutant 345 | -10/Materials | Identified exit to Mines 467 | -10/Materials | Entered Mines 549 | -10/Mines | Discovered new exit (range 14) 693 | -10/Mines | Deemed a non-threat by the Exiles lab entrance 693 | -10/Mines | Discovered new exit (range 5) 697 | -10/Mines | Entered Exiles 710 | -10/Exiles | Discovered new exit (range 15) 726 | -10/Exiles | Met 8R-AWN 742 | -10/Exiles | Met EX-HEX 796 | -10/Exiles | Met EX-DEC 817 | -10/Exiles | Visited The Gauntlet 981 | -10/Exiles | Discovered new exit (range 14) 1036 | -10/Exiles | Met EX-BIN 1050 | -10/Exiles | Aligned with FarCom system 1051 | -10/Exiles | Given EX-Vault access code 1075 | -10/Exiles | Opened EX-Vault 1098 | -10/Exiles | Warned to stay clear of 0b10 Research branches 1259 | -10/Exiles | Found XL Autogun Array 1378 | -10/Exiles | Attacked by the Exiles 1386 | -10/Exiles | Core integrity fell below 50% 1387 | -10/Exiles | Core integrity fell below 20% 1392 | -10/Exiles | Destroyed by DAS Turret with DAS Cannon Last Messages --------------- 1234 which I did last time as a little joke and some thief managed to sneak in here and steal a few of HEX's prototypes. 01167_ Discarded Imp. Targeting Computer. 01168_ Acquired Med. Storage Unit. 01259_ Acquired XL Autogun Array. 01350_ Extracted 21 matter. 01351_ Acquired Med. Matter Pod. 01356_ Extracted 2 energy. 01357_ Acquired Hcp. Battery. 01378_ EXILES: Hostile robot within lab perimeter. Defensive protocols time, folks! 01381_ Grenade Launcher destroyed. 01381_ Knocked back. 01382_ Lgt. Ion Engine destroyed. 01382_ Plasma Cutter destroyed. 01382_ Knocked back. 01385_ Com. Wheel destroyed. 01386_ Knocked back. 01389_ EX-BIN: "I just want to science!" 01390_ Com. Wheel destroyed. Map ----- +----------------------------------------------------+ | #" ""#????????????" """#???????## """ | | "" ###????????????" ?????????# """ | | #?????????????"" ?????????#" "X" """ | | ##????????????"" "#????????#" """ | | "#???????????? ""?????????#" """"""""" | | ###???????????" "?????????##" ########## | | ##??????????# #????????##"" #????????? | | ##"" ######???### ###?######"" #????????? | | ?##" """#####X# #"###""""""" ##???????? | | ??#" """""" " "" ##???#### | | ??#"# "" """ " #####""" | | ??#### " " " " | | ?????### " | | ???????### | | ?????????## | | ??????????## | | ???????????##" | | ????????????#""" """""" | | ???????????##" ######""" | | ???????????#"" ""##????#####""" | | ??????????##""" """##?????????##""" | | ??????????#""" """##???????????#"""" | | ??????????#""" ""#???????????##"" | | ??????????#"" ########??####"""" | | ??????????#""" c ##aaa####""" | | ??????????#"" t @ a a a """" | | ??????????##"" aa | | ???????????#"""" c a | | ???????????## | | ????????????#" " "" | | ????????????#"""" ""## ##""" " " " | | ????????????#"" ""#### ######""" "" | | ????????????#" """"##??# #????###"""" | | ????????????#""" """#??## ####???##### | | ????????????## ""##??# "!#???????? | | ?????????????#"" """##???#" #???????? | | ?????????????##""" ##????#" "#???????? | | ??????????????##"""" ##?????#!!""!"#???????? | | ???????????????### #??????########???????? | | ?????????????????##### ##?????????????????????? | | ?????????????????????## #??????????????????????? | | ??????????????????????# #??????????????????????? | | ??????????????????????# #??????????????????????? | | ??????????????????????# #??????????????????????? | | ?????????????###??????# #??????????????????????? | | ???"""""???#"""""?????# #??????????????????????? | | ?"""""""????"""""""???# #??????????????????????? | | """""" "#??#" """"#??# #??????????????????????? | | #""" """????"" """???# #??????????????????????? | | #"" ""????"" ""???# #??????????????????????? | +----------------------------------------------------+ Best States ------------- Heat Dissipation 25 Energy Generation 10 Energy Capacity 125 Matter Stores 300 Matter Capacity 300 Sight Range 16 Terrain Scan Density 10 Evasion (%) 42 Targeting Accuracy 6 Item Schematics ----------------- Com. Wheel | -10/Materials | Hacked Hcp. Storage Unit | -10/Materials | Hacked Robot Schematics ------------------ None Fabricated ------------ Nothing Alien Tech Used ----------------- None Achievements -------------- None Challenges ------------ None Game ------ Seed RegenerativeAngularSuite Manual? 0 Play Time 00:20:36 Cumulative 170.5 hours Start 2021.10.11 @ 20:42:31 End 2021.10.11 @ 21:09:40 Sessions 1 Manual Loads 0 Difficulty Rogue Special Mode None Game No. 62 Rogue 59 Adventurer 0 Explorer 3 Win Type - Total 3 Types 2/0/0/1/0/0/0/0/0 Lore% 45 Gallery% 64 Achievement% 47 Wizard Run 0 Options --------- ASCII 0 Keyboard 0 Movement Numpad Keybinds 0 Fullscreen 1 Font 18/SmallcapsGlow Map View 76x50 Tactical HUD 1 Map Filters NONE Filters NONE Steam 1 RUN: 55813827-7d21-4911-88a6-e4dbff7313ef